bitfinex-derivatives/quotes_SOLF0:USTF0_20260305
["timestamp","ask_amount","ask_price","bid_price","bid_amount"]
[1772698586926,18.07817844,90.106,90.027,0.0755418]
[1772698586927,3.55137585,90.059,90.027,0.0755418]
[1772698587132,3.55137585,90.059,90.005,3.55907106]
[1772698587836,2.84715489,90.04,89.991,3.87723444]
[1772698588035,2.84715489,90.04,89.921,27.37583823]
[1772698588036,3.89174252,90.029,89.975,3.87723444]
[1772698588230,2.84715489,90.02,89.975,3.87723444]
[1772698588433,3.89174252,90.029,89.975,3.87723444]
[1772698589438,3.89174252,90.029,89.922,20.012]
[1772698589439,2.84715489,90.01,89.96,2.84715489]
[1772698589640,2.84715489,90.01,89.961,3.87723444]
[1772698589839,3.89174252,90.009,89.961,3.87723444]
[1772698590033,2.84715489,90.01,89.963,3.87723444]
[1772698590739,2.84715489,90.0,89.95,2.84715489]
[1772698591231,2.84715489,90.0,89.95,6.72438933]
[1772698591537,3.89174252,90.009,89.966,0.08112316]
[1772698592238,3.89174252,90.049,90.0,2.84715489]
[1772698592438,3.89174252,90.049,90.001,3.87723444]
[1772698593130,3.89174252,90.049,90.016,0.07443163]
[1772698593637,9.991,90.058,90.016,0.07443163]
[1772698593940,3.89174252,90.082,90.017,3.87723444]
[1772698594437,3.89174252,90.073,90.02,9.995]
[1772698594739,3.89174252,90.073,90.017,3.87723444]
[1772698594936,3.89174252,90.073,90.04,0.07007924]
[1772698595537,3.89174252,90.071,90.04,0.07007924]
[1772698596037,3.89174252,90.071,90.018,9.995]
[1772698596237,3.89174252,90.069,90.017,3.87723444]
[1772698596439,3.89174252,90.069,90.008,9.996]
[1772698596836,0.07136223,90.052,90.015,3.87723444]
[1772698598337,0.07136223,90.052,90.018,3.87723444]
[1772698599045,13.88074252,90.075,90.021,9.995]
[1772698599343,7.60871844,90.1,90.021,9.995]
[1772698599344,0.07511221,90.044,90.021,9.995]
[1772698599941,3.89174252,90.074,90.021,9.995]
[1772698600137,3.89174252,90.074,90.024,13.87123444]
[1772698600438,3.89174252,90.074,90.038,0.07563564]
[1772698601552,3.89174252,90.097,90.038,3.95287008]
[1772698601950,3.89174252,90.097,90.03,7.60871844]
[1772698601951,3.89174252,90.097,90.045,3.87723444]
[1772698602542,3.89174252,90.097,90.058,0.08423684]
[1772698602744,3.89174252,90.113,90.059,3.87723444]
[1772698602939,3.89174252,90.137,90.059,3.87723444]
[1772698603542,3.89174252,90.137,90.073,3.87723444]
[1772698603746,3.89174252,90.137,90.089,0.07099696]
[1772698603941,1.93118757,90.173,90.091,3.87723444]
[1772698604142,19.948,90.21,90.09,7.60871844]
[1772698604143,3.89174252,90.157,90.09,7.60871844]
[1772698604450,3.89174252,90.157,90.082,3.87723444]
[1772698604743,7.60871844,90.17,90.07,7.60871844]
[1772698604744,3.89174252,90.156,90.096,3.87723444]
[1772698605049,3.89174252,90.182,90.115,3.87723444]
[1772698606146,7.60871844,90.19,90.115,3.87723444]
[1772698606147,3.89174252,90.178,90.139,0.07484894]
[1772698606448,3.89174252,90.178,90.049,155.43]
[1772698606449,3.89174252,90.169,90.097,3.87723444]
[1772698608051,3.89174252,90.167,90.097,3.87723444]
[1772698608644,0.07600408,90.141,90.097,3.87723444]
[1772698608843,0.07600408,90.141,90.08,7.5934896]
[1772698608844,0.07600408,90.141,90.101,3.97482314]
[1772698609047,3.98171403,90.183,90.123,0.073853]
[1772698609450,3.98171403,90.18,90.123,0.073853]
[1772698609750,3.98171403,90.18,90.102,3.97482314]
[1772698609951,3.98171403,90.17,90.102,3.97482314]
[1772698610151,11.57520363,90.17,90.102,3.97482314]
[1772698610455,3.98171403,90.169,90.132,0.07437863]
[1772698610652,3.98171403,90.161,90.132,0.07437863]
[1772698611353,3.98171403,90.161,90.102,3.97482314]
[1772698611354,3.98171403,90.159,90.102,3.97482314]
[1772698612549,3.98171403,90.189,90.102,3.97482314]
[1772698613248,0.07192358,90.155,90.102,3.97482314]
[1772698613450,0.07192358,90.155,90.113,3.97482314]
[1772698614148,9.978,90.169,90.113,3.97482314]
[1772698614348,3.98171403,90.166,90.113,3.97482314]
[1772698614746,0.07522663,90.15,90.113,3.97482314]
[1772698615551,0.07522663,90.15,90.114,9.984]
[1772698615855,0.07522663,90.15,90.115,3.97482314]
[1772698617348,0.07522663,90.15,90.1,3.97482314]
[1772698617953,3.98171403,90.166,90.1,3.97482314]
[1772698618153,3.98171403,90.189,90.103,3.97482314]
[1772698618557,3.98171403,90.189,90.111,3.97482314]
[1772698618855,0.07347276,90.155,90.111,3.97482314]
[1772698619054,0.07347276,90.155,90.118,9.984]
[1772698619855,0.07347276,90.155,90.111,3.97482314]
[1772698621358,0.07347276,90.155,90.114,9.984]
[1772698621658,0.07347276,90.155,90.115,3.97482314]
[1772698622861,0.07347276,90.155,90.118,3.97482314]
[1772698624062,0.07347276,90.155,90.131,9.982]
[1772698624265,0.07347276,90.155,90.132,3.97482314]
[1772698625661,0.07347276,90.155,90.111,3.97482314]
[1772698625861,0.07347276,90.155,90.113,9.984]
[1772698626262,0.07347276,90.155,90.044,155.439]
[1772698626263,4.05518679,90.155,90.091,3.97482314]
[1772698626464,3.98171403,90.149,90.091,3.97482314]
[1772698627256,0.07164816,90.129,90.091,3.97482314]
[1772698627661,3.98171403,90.128,90.074,9.989]
[1772698627866,3.98171403,90.128,90.058,3.97482314]
[1772698628063,3.98171403,90.128,90.03,7.5934896]
[1772698628267,3.98171403,90.128,90.031,3.97482314]
[1772698628567,0.07455194,90.088,90.056,9.991]
[1772698628766,0.07455194,90.088,90.046,3.97482314]
[1772698629468,0.07455194,90.088,90.063,9.99]
[1772698629859,3.98171403,90.12,90.046,3.97482314]
[1772698630064,3.98171403,90.12,90.066,0.07729419]
[1772698630464,7.5934896,90.13,90.066,0.07729419]
[1772698630465,3.98171403,90.118,90.066,0.07729419]
[1772698630969,3.98171403,90.118,90.055,9.991]
[1772698631474,3.98171403,90.118,90.083,0.07849477]
[1772698631768,3.98171403,90.139,90.083,0.07849477]
[1772698631962,13.96471403,90.13,90.083,0.07849477]
[1772698632162,3.98171403,90.129,90.083,0.07849477]
[1772698632370,3.98171403,90.129,90.07,3.97482314]
[1772698632666,3.98171403,90.125,90.07,3.97482314]
[1772698633174,3.98171403,90.123,90.07,3.97482314]
[1772698633770,3.98171403,90.123,90.071,9.989]
[1772698634072,3.98171403,90.123,90.051,3.97482314]
[1772698634269,3.98171403,90.119,90.051,3.97482314]
[1772698634665,0.07278018,90.096,90.051,3.97482314]
[1772698635074,0.07278018,90.096,90.061,9.99]
[1772698635375,0.07278018,90.096,90.051,3.97482314]
[1772698636067,0.07278018,90.096,90.052,9.991]
[1772698637067,0.07278018,90.096,90.051,3.97482314]
[1772698637267,4.05449421,90.096,90.034,3.97482314]
[1772698637668,0.07278018,90.096,90.034,3.97482314]
[1772698637872,3.98171403,90.112,90.051,3.97482314]
[1772698639175,3.98171403,90.112,90.061,9.99]
[1772698639674,0.0736667,90.091,90.061,9.99]
[1772698641773,0.0736667,90.091,90.068,9.989]
[1772698642872,0.0736667,90.091,90.059,9.99]
[1772698643077,0.0736667,90.091,90.051,3.97482314]
[1772698643581,3.79194646,90.128,90.085,9.988]
[1772698643879,3.79194646,90.128,90.066,3.98693239]
[1772698644581,3.79194646,90.126,90.066,3.98693239]
[1772698644976,3.79194646,90.119,90.049,3.98693239]
[1772698645476,7.5934896,90.12,90.049,3.98693239]
[1772698645477,3.79194646,90.104,90.055,9.991]
[1772698645874,3.79194646,90.104,90.031,3.98693239]
[1772698646777,3.79194646,90.095,90.038,9.993]
[1772698646977,3.79194646,90.095,90.031,3.98693239]
[1772698648077,0.07146771,90.072,90.046,3.97322097]
[1772698649382,0.07146771,90.072,90.051,9.991]
[1772698650380,0.07146771,90.072,90.046,3.97322097]
[1772698650381,0.07146771,90.072,90.03,3.97322097]
[1772698650781,0.07146771,90.072,89.956,155.591]
[1772698650782,3.84204724,90.071,90.011,3.97322097]
[1772698651078,3.84204724,90.063,90.011,3.97322097]
[1772698652280,9.989,90.076,90.022,9.994]
[1772698653381,13.83104724,90.076,90.022,9.994]
[1772698654782,13.83104724,90.076,90.029,9.994]
[1772698654984,3.84204724,90.076,90.029,13.96722097]
[1772698655488,9.987,90.093,90.043,0.07057694]
[1772698656078,9.987,90.093,90.031,3.97322097]
[1772698656281,9.987,90.091,90.031,3.97322097]
[1772698656686,3.84204724,90.119,90.053,0.08334324]
[1772698657388,3.84204724,90.104,90.011,3.97322097]
[1772698657589,3.84204724,90.099,90.011,3.97322097]
[1772698657784,3.84204724,90.099,90.025,3.97322097]
[1772698658390,9.987,90.086,90.028,9.994]
[1772698658589,3.84204724,90.085,90.025,3.97322097]
[1772698659190,7.5934896,90.1,90.041,3.97322097]
[1772698659191,3.84204724,90.1,90.041,3.97322097]
[1772698659678,3.84204724,90.1,90.046,3.97322097]
[1772698660792,13.82604724,90.116,90.061,13.96322097]
[1772698661284,0.07043201,90.098,90.062,3.97322097]
[1772698662492,0.07043201,90.098,90.07,9.989]
[1772698665591,0.07043201,90.098,90.077,9.988]
[1772698667596,0.07043201,90.098,90.069,9.989]
[1772698669788,0.07043201,90.098,90.076,9.988]
[1772698670490,3.84204724,90.116,90.07,3.60898401]
[1772698671185,3.88540358,90.139,90.07,3.60898401]
[1772698672498,9.983,90.13,90.079,9.988]
[1772698672798,3.88540358,90.139,90.08,3.60898401]
[1772698672999,3.88540358,90.147,90.081,3.60898401]
[1772698674596,9.981,90.146,90.095,9.986]
[1772698674903,13.86640358,90.146,90.095,9.986]
[1772698675095,3.88540358,90.162,90.103,3.60898401]
[1772698675895,3.88540358,90.16,90.105,9.985]
[1772698676200,3.88540358,90.159,90.094,3.60898401]
[1772698676601,7.4294974,90.15,90.094,3.60898401]
[1772698676903,3.88540358,90.139,90.097,9.986]
[1772698677394,3.54409382,90.15,90.104,9.985]
[1772698677798,3.88540358,90.149,90.094,3.60898401]
[1772698679003,3.88540358,90.149,90.103,9.986]
[1772698680303,3.54409382,90.12,90.07,3.54409382]
[1772698680502,3.54409382,90.12,90.071,3.60898401]
[1772698680802,3.54409382,90.12,90.031,19.988]
[1772698680803,3.54409382,90.14,90.091,3.60898401]
[1772698681007,3.88540358,90.143,90.1,7.15307783]
[1772698682004,3.54409382,90.13,90.084,3.60898401]
[1772698682612,0.0707062,90.116,90.086,9.987]
[1772698682810,0.0707062,90.116,90.09,7.15307783]
[1772698683211,0.0707062,90.116,90.08,3.54409382]
[1772698683413,7.4294974,90.13,90.08,3.54409382]
[1772698683813,7.4294974,90.13,90.084,9.988]
[1772698684313,7.4294974,90.13,90.081,9.988]
[1772698684514,7.4294974,90.13,90.082,3.60898401]
[1772698684812,3.88540358,90.145,90.091,3.60898401]
[1772698685012,3.54409382,90.15,90.1,3.54409382]
[1772698685203,3.88540358,90.149,90.1,3.54409382]
[1772698685511,3.88540358,90.149,90.091,3.60898401]
[1772698686513,3.54409382,90.14,90.099,9.986]
[1772698687006,0.07043225,90.129,90.099,9.986]
[1772698688610,0.07043225,90.129,90.106,9.985]
[1772698689703,3.88540358,90.168,90.12,3.60898401]
[1772698689904,3.88540358,90.168,90.12,7.15307783]
[1772698690309,18.25248591,90.216,90.045,1.93096254]
[1772698690310,3.54409382,90.18,90.131,3.60898401]
[1772698690514,3.88540358,90.183,90.131,3.60898401]
[1772698691113,3.54409382,90.18,90.148,0.08118549]
[1772698691611,3.54409382,90.17,90.131,3.60898401]
[1772698692110,3.54409382,90.17,90.12,13.52809382]
[1772698692310,3.88540358,90.169,90.117,3.60898401]
[1772698692509,3.54409382,90.16,90.117,3.60898401]
[1772698693021,0.08151461,90.148,90.117,3.60898401]
[1772698693724,0.08151461,90.148,90.119,9.984]
[1772698694419,3.54409382,90.14,90.091,3.60898401]
[1772698694618,0.08151461,90.148,90.111,3.60898401]
[1772698694921,3.88540358,90.159,90.111,3.60898401]
[1772698695314,0.07693198,90.139,90.111,3.60898401]
[1772698695518,0.07693198,90.139,90.103,9.985]
[1772698696115,3.88540358,90.145,90.103,9.985]
[1772698696526,0.07812243,90.13,90.103,9.985]
[1772698696927,0.07812243,90.13,90.096,3.60898401]
[1772698697328,0.07812243,90.13,90.099,9.986]
[1772698698729,3.86536062,90.129,90.081,3.60898401]
[1772698698929,3.54409382,90.12,90.081,3.60898401]
[1772698699229,3.86536062,90.129,90.081,3.60898401]
[1772698699731,3.86536062,90.129,90.081,13.59698401]
[1772698699930,0.07818083,90.114,90.081,13.59698401]
[1772698701432,0.07818083,90.114,90.081,3.60898401]
[1772698702438,7.40945444,90.16,90.101,3.88799949]
[1772698702735,7.40945444,90.16,90.11,3.54409382]
[1772698703229,7.40945444,90.16,90.11,7.43209331]
[1772698703434,9.979,90.159,90.11,7.43209331]
[1772698704134,3.54409382,90.15,90.11,3.88799949]
[1772698704333,3.54409382,90.15,90.1,3.54409382]
[1772698704532,0.07721907,90.144,90.1,3.54409382]
[1772698705130,0.07721907,90.144,90.101,3.88799949]
[1772698705331,0.07721907,90.144,90.053,19.983]
[1772698705332,3.54409382,90.14,90.09,13.53109382]
[1772698705634,0.07721907,90.144,90.101,3.88799949]
[1772698705930,3.54409382,90.15,90.101,3.88799949]
[1772698706131,3.86536062,90.149,90.09,3.54409382]
[1772698706338,0.07908938,90.132,90.091,3.88799949]
[1772698708039,0.07908938,90.132,90.091,13.87499949]
[1772698708241,0.07908938,90.132,90.092,3.99294893]
[1772698708536,0.07908938,90.132,90.095,9.986]
[1772698708741,0.07908938,90.132,90.101,3.99294893]
[1772698709240,3.86536062,90.149,90.101,3.99294893]
[1772698709639,0.07613432,90.126,90.101,3.99294893]
[1772698710537,0.07613432,90.126,90.09,3.54409382]
[1772698710939,0.07613432,90.126,90.089,9.987]
[1772698711138,3.54409382,90.13,90.089,9.987]
[1772698711340,3.88806643,90.139,90.089,9.987]
[1772698711539,0.08005624,90.117,90.084,3.99294893]
[1772698713143,0.08005624,90.117,90.07,3.54409382]
[1772698713144,0.08005624,90.117,90.07,3.99294893]
[1772698713342,3.54409382,90.11,90.07,3.99294893]
[1772698714543,0.08005624,90.117,90.07,3.99294893]
[1772698715045,0.08005624,90.117,90.071,9.989]
[1772698715348,0.08005624,90.117,90.081,3.99294893]
[1772698715940,3.54409382,90.11,90.061,3.99294893]
[1772698716145,3.54409382,90.12,90.071,3.99294893]
[1772698716446,0.08229351,90.108,90.081,3.99294893]
[1772698717039,3.54409382,90.13,90.082,3.99294893]
[1772698717446,0.07441121,90.104,90.082,3.99294893]
[1772698717744,0.07441121,90.104,90.065,3.99294893]
[1772698718346,3.54409382,90.11,90.065,3.99294893]
[1772698718651,0.08034624,90.094,90.065,3.99294893]
[1772698718950,0.08034624,90.094,90.06,3.54409382]
[1772698719147,0.08034624,90.094,90.061,3.99294893]
[1772698719344,0.08034624,90.094,90.07,3.54409382]
[1772698719549,0.08034624,90.094,90.07,7.53704275]
[1772698720442,0.08034624,90.094,90.071,9.989]
[1772698720645,3.54409382,90.13,90.081,3.99294893]
[1772698721048,3.54409382,90.13,90.082,3.99294893]
[1772698721253,9.982,90.134,90.09,7.53704275]
[1772698721954,3.54409382,90.14,90.103,0.08206992]
[1772698723650,3.88806643,90.141,90.103,0.08206992]
[1772698723850,3.54409382,90.15,90.103,0.08206992]
[1772698724450,3.54409382,90.15,90.103,4.07501885]
[1772698724659,3.88806643,90.155,90.11,3.54409382]
[1772698725055,3.54409382,90.15,90.11,3.54409382]
[1772698725556,3.54409382,90.15,90.121,0.08318868]
[1772698726154,3.88806643,90.149,90.103,3.99294893]
[1772698726355,3.54409382,90.14,90.103,3.99294893]
[1772698726557,3.54441176,90.14,90.103,3.99294893]
[1772698729364,0.08376557,90.145,90.103,3.99294893]
[1772698729661,13.6919574,90.145,90.093,9.987]
[1772698729859,3.62719183,90.139,90.093,9.987]
[1772698730262,3.62719183,90.139,90.091,3.72078575]
[1772698730862,0.07274184,90.124,90.101,3.72078575]
[1772698731464,3.54441176,90.15,90.101,3.72078575]
[1772698731867,0.07784072,90.122,90.101,3.72078575]
[1772698732060,3.54441176,90.15,90.101,3.72078575]
[1772698732261,13.60719183,90.153,90.116,0.07711688]
[1772698732967,3.54441176,90.15,90.116,0.07711688]
[1772698733469,3.62719183,90.153,90.116,0.07711688]
[1772698733864,3.62719183,90.168,90.12,3.54441176]
[1772698734060,3.62719183,90.168,90.121,3.72078575]
[1772698734463,13.39343169,90.22,90.07,19.979]
[1772698734464,3.54441176,90.18,90.131,3.72078575]
[1772698735362,3.54441176,90.16,90.116,9.984]
[1772698735669,3.54441176,90.15,90.115,3.72078575]
[1772698735869,3.62719183,90.159,90.115,3.72078575]
[1772698736065,3.54441176,90.15,90.115,3.72078575]
[1772698736574,3.54441176,90.14,90.091,3.72078575]
[1772698737563,3.62719183,90.139,90.091,3.72078575]
[1772698737761,3.54441176,90.13,90.091,3.72078575]
[1772698738364,9.981,90.147,90.1,3.54441176]
[1772698738560,3.62719183,90.146,90.101,3.72078575]
[1772698738765,0.07141019,90.12,90.101,3.72078575]
[1772698738965,3.62719183,90.146,90.114,0.07862346]
[1772698740268,3.54441176,90.16,90.114,0.07862346]
[1772698740764,7.17160359,90.16,90.11,3.54441176]
[1772698740968,3.62719183,90.149,90.101,3.72078575]
[1772698741170,7.17160359,90.14,90.096,9.986]
[1772698741667,0.07662855,90.134,90.096,9.986]
[1772698741858,0.07662855,90.134,90.087,3.72078575]
[1772698741859,3.54441176,90.13,90.087,3.72078575]
[1772698743471,3.62719183,90.129,90.088,9.987]
[1772698743967,0.07662855,90.134,90.101,3.72078575]
[1772698744470,3.62719183,90.158,90.11,3.54441176]
[1772698744869,0.07334166,90.127,90.11,3.54441176]
[1772698745269,3.62719183,90.158,90.11,7.26519751]
[1772698745772,3.62719183,90.158,90.111,3.72078575]
[1772698748372,3.62719183,90.158,90.112,9.985]
[1772698749269,3.62719183,90.158,90.112,13.70578575]
[1772698749471,3.62719183,90.158,90.113,3.72078575]
[1772698750568,3.62719183,90.158,90.109,0.07312438]
[1772698751172,3.62719183,90.158,90.11,3.54441176]
[1772698752073,3.62719183,90.158,90.109,0.07312438]
[1772698752267,3.62719183,90.158,90.11,3.54441176]
[1772698752573,3.62719183,90.155,90.11,3.54441176]
[1772698753174,3.62719183,90.149,90.109,0.07312438]
[1772698753369,3.62719183,90.139,90.109,0.07312438]
[1772698753570,3.62719183,90.139,90.085,3.72078575]
[1772698753877,3.54441176,90.13,90.085,3.72078575]
[1772698754278,3.62719183,90.128,90.085,3.72078575]
[1772698754675,3.62719183,90.128,90.081,3.72078575]
[1772698754978,0.07862465,90.116,90.081,3.72078575]
[1772698757470,3.54441176,90.11,90.063,3.72078575]
[1772698758379,3.54441176,90.11,90.023,19.989]
[1772698758380,0.07925264,90.096,90.071,3.72078575]
[1772698758573,0.07925264,90.096,90.08,3.54441176]
[1772698758772,3.75618108,90.129,90.08,3.54441176]
[1772698758971,3.75618108,90.129,90.081,3.74596047]
[1772698759480,9.983,90.128,90.081,3.74596047]
[1772698759684,3.75618108,90.129,90.081,3.74596047]
[1772698760082,3.75618108,90.129,90.095,0.08149463]
[1772698760284,13.73918108,90.129,90.095,0.08149463]
[1772698760984,3.75618108,90.128,90.095,0.08149463]
[1772698761280,3.54441176,90.13,90.032,27.37583823]
[1772698761483,3.75618108,90.118,90.061,3.74596047]
[1772698761683,3.75618108,90.099,90.05,3.54441176]
[1772698761987,3.75618108,90.114,90.061,3.74596047]
[1772698762885,0.0746154,90.097,90.061,3.74596047]
[1772698763079,0.0746154,90.097,90.07,3.54441176]
[1772698764187,0.0746154,90.097,90.07,7.29037223]
[1772698764486,0.0746154,90.097,90.071,3.74596047]
[1772698765486,0.0746154,90.097,90.072,9.989]
[1772698765787,0.0746154,90.097,90.073,3.74596047]
[1772698765987,3.75618108,90.114,90.073,3.74596047]
[1772698767490,3.54441176,90.11,90.073,3.74596047]
[1772698767882,3.75618108,90.114,90.084,0.074865]
[1772698769083,7.19008934,90.11,90.084,0.074865]
[1772698769586,33.5946289,90.235,90.048,9.992]
[1772698769587,3.64567758,90.099,90.048,9.992]
[1772698769990,3.54441176,90.09,90.048,9.992]
[1772698770290,3.64567758,90.099,90.048,9.992]
[1772698770491,3.64567758,90.099,90.042,3.92135214]
[1772698770883,3.54441176,90.08,90.031,3.92135214]
[1772698771086,0.0836297,90.083,90.031,3.92135214]
[1772698771488,3.64567758,90.089,90.031,3.92135214]
[1772698771892,0.07550023,90.066,90.031,3.92135214]
[1772698772392,0.07550023,90.066,90.034,9.993]
[1772698772789,0.07550023,90.066,90.031,3.92135214]
[1772698772984,0.07550023,90.066,90.02,3.54441176]
[1772698773586,3.54441176,90.07,90.02,7.4657639]
[1772698773795,3.54441176,90.07,90.023,3.92135214]
[1772698774094,0.07042294,90.052,90.023,3.92135214]
[1772698774787,3.64567758,90.076,90.025,3.92135214]
[1772698775792,3.64567758,90.076,90.03,3.54441176]
[1772698776289,3.64567758,90.074,90.025,3.92135214]
[1772698776693,3.64567758,90.089,90.041,3.92135214]
[1772698777397,3.64567758,90.089,90.045,9.992]
[1772698777693,3.64567758,90.089,90.041,3.92135214]
[1772698778396,3.64567758,90.089,90.04,3.54441176]
[1772698778397,3.64567758,90.079,90.03,3.54441176]
[1772698778698,3.64567758,90.079,90.036,9.993]
[1772698779489,3.64567758,90.079,90.043,9.992]
[1772698780398,3.64567758,90.079,90.03,3.54441176]
[1772698780699,3.64567758,90.079,89.962,27.37583823]
[1772698780700,3.64567758,90.059,90.01,3.54441176]
[1772698780890,3.64567758,90.059,90.0,3.54441176]
[1772698781398,3.64567758,90.059,90.001,3.92135214]
[1772698782801,3.64567758,90.059,90.021,0.0718018]
[1772698784599,3.64567758,90.049,90.021,0.0718018]
[1772698784899,3.64567758,90.039,89.99,3.54441176]
[1772698786306,0.08252982,90.024,89.99,3.54441176]
[1772698787605,0.08252982,90.024,89.99,7.4657639]
[1772698788608,0.08252982,90.024,89.99,7.47389364]
[1772698789712,0.08252982,90.024,89.99,3.92135214]
[1772698789913,0.08252982,90.024,89.934,20.009]
[1772698789914,3.88309162,90.009,89.96,7.42598042]
[1772698790304,3.88309162,90.009,89.96,3.87343892]
[1772698790710,3.5525415,90.0,89.96,3.87343892]
[1772698790905,0.08122601,89.993,89.96,3.87343892]
[1772698791716,0.08122601,89.993,89.953,10.002]
[1772698792009,0.08122601,89.993,89.95,3.5525415]
[1772698792214,3.88309162,89.979,89.93,3.87343892]
[1772698792414,3.88309162,89.979,89.931,3.87343892]
[1772698793008,3.88309162,89.969,89.913,3.87343892]
[1772698793211,0.07290681,89.964,89.913,3.87343892]
[1772698793711,0.07290681,89.964,89.93,7.42598042]
[1772698793910,0.07290681,89.964,89.931,3.87343892]
[1772698794109,0.07290681,89.964,89.92,3.5525415]
[1772698794310,3.88309162,89.959,89.904,3.87343892]
[1772698794507,3.88309162,89.959,89.91,3.5525415]
[1772698794715,0.07568526,89.951,89.91,3.5525415]
[1772698795311,0.07568526,89.951,89.92,3.5525415]
[1772698796319,0.07568526,89.951,89.91,3.87343892]
[1772698796617,0.07568526,89.951,89.91,7.42598042]
[1772698797919,0.07568526,89.951,89.911,3.87343892]
[1772698798321,3.88309162,89.949,89.9,3.5525415]
[1772698799321,0.07192471,89.933,89.9,3.5525415]
[1772698799922,0.07192471,89.933,89.896,3.87343892]
[1772698800124,0.07192471,89.933,89.9,3.5525415]
[1772698800417,0.07192471,89.933,89.89,7.42598042]
[1772698800718,0.07192471,89.933,89.9,7.42598042]
[1772698801021,3.88309162,89.949,89.9,7.42598042]
[1772698801319,0.07747729,89.925,89.9,7.42598042]
[1772698802520,0.07747729,89.925,89.9,3.87343892]
[1772698804826,3.88309162,89.949,89.901,3.87343892]
[1772698805127,13.59596262,90.048,89.845,1.93529551]
[1772698805128,3.88309162,89.963,89.921,3.87343892]
[1772698805724,3.88309162,89.959,89.91,3.5525415]
[1772698805925,3.88309162,89.949,89.9,3.5525415]
[1772698806331,3.88309162,89.949,89.926,0.07445088]
[1772698806524,3.88309162,89.949,89.9,3.5525415]
[1772698806725,0.07814182,89.933,89.9,3.5525415]
[1772698807127,3.88309162,89.929,89.877,3.87343892]
[1772698807330,3.5525415,89.92,89.877,3.87343892]
[1772698808026,0.07130056,89.907,89.877,3.87343892]
[1772698808227,0.07130056,89.907,89.881,3.87343892]
[1772698808624,0.07130056,89.907,89.89,3.5525415]
[1772698808821,3.88309162,89.929,89.89,3.5525415]
[1772698809025,3.5525415,89.94,89.89,3.5525415]
[1772698809326,3.88309162,89.94,89.89,3.5525415]
[1772698809527,3.88309162,89.939,89.882,10.01]
[1772698809727,3.5525415,89.93,89.883,3.87343892]
[1772698809924,3.5525415,89.93,89.885,3.87343892]
[1772698810329,3.88309162,89.939,89.89,3.5525415]
[1772698810629,3.88309162,89.939,89.887,3.87343892]
[1772698810830,10.0083724,90.03,89.835,21.96661306]
[1772698810831,3.5525415,89.95,89.9,7.42598042]
[1772698811031,3.5525415,89.95,89.901,3.87343892]
[1772698811934,3.88309162,89.953,89.91,3.5525415]
[1772698812123,3.88309162,89.953,89.911,3.87343892]
[1772698812324,3.88309162,89.953,89.917,0.07374572]
[1772698813126,3.88309162,89.983,89.931,3.87343892]
[1772698813731,3.5525415,89.98,89.931,3.87343892]
[1772698814036,3.5525415,89.98,89.948,0.07120033]
[1772698815038,3.88309162,89.997,89.948,0.07120033]
[1772698815238,3.88309162,89.997,89.94,7.42598042]
[1772698815735,3.5525415,89.99,89.94,7.42598042]
[1772698816135,3.5525415,89.99,89.938,10.004]
[1772698816136,3.88309162,89.997,89.96,0.07049051]
[1772698816733,3.88309162,89.997,89.95,3.5525415]
[1772698816934,3.88309162,89.997,89.951,3.87343892]
[1772698817242,3.88309162,89.997,89.97,0.07282106]
[1772698817636,3.5525415,90.01,89.97,0.07282106]
[1772698818138,3.5525415,90.01,89.96,7.42598042]
[1772698818342,3.5525415,90.01,89.961,10.001]
[1772698818641,7.43563312,90.03,89.981,3.73684236]
[1772698818842,3.88309162,90.03,89.981,3.73684236]
[1772698819542,3.62149151,90.029,89.981,3.73684236]
[1772698819940,3.5525415,90.02,89.996,0.07214731]
[1772698820141,7.17403301,90.02,89.996,0.07214731]
[1772698820342,3.62149151,90.019,89.996,0.07214731]
[1772698820840,3.62149151,90.009,89.952,3.73684236]
[1772698821143,3.5525415,90.0,89.952,3.73684236]
[1772698821339,3.5525415,90.0,89.954,10.002]
[1772698821739,3.62149151,89.999,89.94,3.5525415]
[1772698821944,19.982,90.057,89.935,3.73684236]
[1772698821945,7.17403301,89.98,89.935,3.73684236]
[1772698822141,3.5525415,89.97,89.92,7.28938386]
[1772698822344,3.5525415,89.97,89.921,3.73684236]
[1772698822535,3.62149151,89.979,89.921,3.73684236]
[1772698822837,3.62149151,89.999,89.935,3.73684236]
[1772698823042,0.08519508,89.954,89.935,3.73684236]
[1772698823345,3.62149151,89.982,89.935,3.73684236]
[1772698823741,0.07430016,89.953,89.901,3.73684236]
[1772698824243,3.62149151,89.96,89.901,3.73684236]
[1772698824742,0.07134,89.936,89.901,3.73684236]
[1772698825536,3.62149151,89.979,89.901,3.73684236]
[1772698826136,3.62149151,89.979,89.88,7.6241599]
[1772698826137,3.62149151,89.978,89.929,10.005]
[1772698826342,3.62149151,89.978,89.93,3.73684236]
[1772698827841,3.62149151,89.978,89.945,0.07041841]
[1772698828037,3.56529059,89.994,89.945,0.07041841]